fUSD/lending_fUSD_20260408
["ID","MTS","AMOUNT","RATE_DAILY","PERIOD"]
[420058994,1775640354989,-2637.308,9.88e-05,2]
[420058995,1775640355012,-3331.28996329,9.88e-05,2]
[420058996,1775640355036,-386.71698126,9.88e-05,2]
[420058997,1775640355062,-3275.71094884,9.88e-05,2]
[420058998,1775640376643,-7990.97230608,9.88e-05,2]
[420058999,1775640376669,-206.0,9.88e-05,3]
[420059000,1775640376697,-1803.02769392,9.88e-05,2]
[420059001,1775640393668,-484.13,9.88e-05,2]
[420059002,1775640393691,-160.59720398,9.88e-05,2]
[420059003,1775640393718,-9355.27279602,9.88e-05,2]
[420059004,1775640401375,9126.7707,9.78e-05,2]
[420059005,1775640404120,-10000.0,9.88e-05,2]
[420059006,1775640420535,-10000.0,9.88e-05,2]
[420059007,1775640427791,283.332366,7.945e-05,2]
[420059008,1775640429199,-300.0,9.879e-05,2]
[420059009,1775640429222,-150.0,9.879e-05,2]
[420059010,1775640429244,-195.0,9.88e-05,3]
[420059011,1775640429269,-9355.0,9.88e-05,2]
[420059012,1775640480847,500.0,9.772e-05,2]
[420059013,1775640493336,-300.0,9.878e-05,2]
[420059014,1775640493360,-500.0,9.879e-05,2]
[420059015,1775640493391,-500.0,9.879e-05,2]
[420059016,1775640493422,-500.0,9.879e-05,2]
[420059017,1775640493453,-500.0,9.879e-05,2]
[420059018,1775640493483,-500.0,9.879e-05,2]
[420059019,1775640493512,-500.0,9.879e-05,2]
[420059020,1775640493543,-500.0,9.879e-05,2]
[420059021,1775640493573,-500.0,9.879e-05,2]
[420059022,1775640493603,-500.0,9.879e-05,2]
[420059023,1775640493632,-500.0,9.879e-05,2]
[420059024,1775640493662,-500.0,9.879e-05,2]
[420059025,1775640493692,-500.0,9.879e-05,2]
[420059026,1775640493751,-500.0,9.879e-05,2]
[420059027,1775640493780,-500.0,9.879e-05,2]
[420059028,1775640493808,-500.0,9.879e-05,2]
[420059029,1775640493837,-500.0,9.879e-05,2]
[420059030,1775640493866,-500.0,9.879e-05,2]
[420059031,1775640493896,-500.0,9.879e-05,2]
[420059032,1775640493926,-500.0,9.879e-05,2]
[420059033,1775640493955,-200.0,9.879e-05,2]
[420059034,1775640504756,-300.0,9.879e-05,2]
[420059035,1775640504786,-500.0,9.879e-05,2]
[420059036,1775640504815,-500.0,9.879e-05,2]
[420059037,1775640504843,-500.0,9.879e-05,2]
[420059038,1775640504871,-500.0,9.879e-05,2]
[420059039,1775640504899,-500.0,9.879e-05,2]
[420059040,1775640504926,-500.0,9.879e-05,2]
[420059041,1775640504954,-500.0,9.879e-05,2]
[420059042,1775640504982,-500.0,9.879e-05,2]
[420059043,1775640505010,-500.0,9.879e-05,2]
[420059044,1775640505038,-500.0,9.879e-05,2]
[420059045,1775640505066,-500.0,9.879e-05,2]
[420059046,1775640505093,-500.0,9.879e-05,2]
[420059047,1775640505120,-500.0,9.879e-05,2]
[420059048,1775640505144,-270.02811112,9.879e-05,2]
[420059049,1775640505170,-500.0,9.879e-05,2]
[420059050,1775640505196,-500.0,9.879e-05,2]
[420059051,1775640505223,-500.0,9.879e-05,2]
[420059052,1775640505250,-500.0,9.879e-05,2]
[420059053,1775640505277,-500.0,9.879e-05,2]
[420059054,1775640505750,-429.97188888,9.879e-05,2]
[420059055,1775640515651,-10000.0,9.87e-05,2]
[420059057,1775640602591,9500.01,9.78e-05,2]
[420059058,1775640602617,10000.01,9.78e-05,2]
[420059059,1775640602642,10000.01,9.78e-05,2]
[420059060,1775640602668,10000.01,9.78e-05,2]
[420059061,1775640602694,10000.01,9.78e-05,2]
[420059062,1775640602720,10000.01,9.78e-05,2]
[420059063,1775640602745,10000.01,9.78e-05,2]
[420059064,1775640602771,10000.01,9.78e-05,2]
[420059065,1775640602797,10000.01,9.78e-05,2]
[420059066,1775640602822,10000.01,9.78e-05,2]
[420059067,1775640611048,-2859.105034,9.78e-05,2]
[420059068,1775640611077,-10000.01,9.78e-05,2]
[420059069,1775640611102,-10000.01,9.78e-05,2]
[420059070,1775640611151,-10000.01,9.78e-05,2]
[420059071,1775640611188,-10000.01,9.78e-05,2]
[420059072,1775640611320,-10000.01,9.78e-05,2]
[420059073,1775640611390,-10000.01,9.78e-05,2]
[420059074,1775640631648,-9097.16495977,9.78e-05,2]
[420059079,1775640631830,-878.17418521,9.78e-05,2]
[420059080,1775640631842,-71630.56264619,9.78e-05,2]
[420059081,1775640631854,-128474.57593204,9.78e-05,2]
[420059082,1775640631866,-120094.78341093,9.78e-05,2]
[420059083,1775640631879,-4820.97960721,9.78e-05,2]
[420059084,1775640632032,-2004.59913914,9.78e-05,2]
[420059085,1775640632045,-16121.05247707,9.78e-05,2]
[420059117,1775640638694,-444.06441,9.78e-05,2]
[420059118,1775640638706,-274652.44893099,9.78e-05,2]
[420059119,1775640638717,-709422.32926745,9.78e-05,2]
[420059120,1775640638727,-500.0,9.863e-05,2]
[420059121,1775640638737,-1200.0,9.869e-05,2]
[420059122,1775640638747,-1200.0,9.869e-05,2]
[420059123,1775640638756,-300.0,9.869e-05,2]
[420059124,1775640638766,-150.0,9.869e-05,2]
[420059125,1775640638775,-186.0,9.87e-05,3]
[420059126,1775640638785,-155.0,9.87e-05,3]
[420059127,1775640638794,-68805.31420206,9.87e-05,2]
[420059128,1775640638804,-381.23872411,9.873e-05,2]
[420059129,1775640638814,-500.0,9.873e-05,2]
[420059130,1775640638824,-169.66281329,9.873e-05,2]
[420059131,1775640638834,-500.0,9.873e-05,2]
[420059132,1775640638843,-200.08326476,9.873e-05,2]
[420059133,1775640638854,-500.0,9.873e-05,2]
[420059134,1775640638864,-500.0,9.873e-05,2]
[420059135,1775640638874,-500.0,9.873e-05,2]
[420059137,1775640638886,-281.88719221,9.873e-05,2]
[420059138,1775640638895,-500.0,9.873e-05,2]
[420059140,1775640638906,-500.0,9.873e-05,2]
[420059142,1775640638915,-270.26274142,9.879e-05,2]
[420059144,1775640638925,-500.0,9.879e-05,2]
[420059146,1775640638935,-500.0,9.879e-05,2]
[420059148,1775640638945,-500.0,9.879e-05,2]
[420059150,1775640638956,-500.0,9.879e-05,2]
[420059152,1775640638966,-500.0,9.879e-05,2]
[420059154,1775640638976,-163.30079229,9.879e-05,2]
[420059155,1775640638986,-500.0,9.879e-05,2]
[420059157,1775640638996,-500.0,9.879e-05,2]
[420059159,1775640639006,-500.0,9.879e-05,2]
[420059162,1775640639017,-500.0,9.879e-05,2]
[420059164,1775640639027,-500.0,9.879e-05,2]
[420059165,1775640639037,-500.0,9.879e-05,2]
[420059167,1775640639046,-500.0,9.879e-05,2]
[420059169,1775640639055,-500.0,9.879e-05,2]
[420059171,1775640639065,-500.0,9.879e-05,2]
[420059173,1775640639074,-500.0,9.879e-05,2]
[420059175,1775640639084,-189.01967778,9.879e-05,2]
[420059177,1775640639093,-499.99999999,9.879e-05,2]
[420059179,1775640639103,-500.0,9.879e-05,2]
[420059181,1775640639113,-349.61877292,9.879e-05,2]
[420059183,1775640639123,-958.28926477,9.88e-05,2]
[420059185,1775640639133,-2871.27931665,9.88e-05,2]
[420059187,1775640639142,-5327.31487072,9.88e-05,2]
[420059189,1775640639152,-160.59720398,9.88e-05,2]
[420059191,1775640639162,-2500000.0,9.88e-05,2]
[420059193,1775640639172,-9999.99,9.88e-05,2]
[420059195,1775640639182,-351.58,9.88e-05,2]
[420059197,1775640639191,-150.99,9.88e-05,2]
[420059200,1775640639203,-1575.11,9.88e-05,2]
[420059202,1775640639214,-5000.0,9.882e-05,2]
[420059204,1775640639223,-299.99,9.883e-05,2]
[420059206,1775640639233,-6652.22,9.883e-05,2]
[420059207,1775640639243,-8387.58,9.883e-05,2]
[420059208,1775640639253,-9999.99,9.883e-05,2]
[420059209,1775640639264,-499.99,9.883e-05,2]
[420059210,1775640639274,-5383.62,9.883e-05,2]
[420059211,1775640639283,-9999.99,9.883e-05,2]
[420059212,1775640639293,-33041.7805,9.9e-05,2]
[420059213,1775640639303,-534.4933,9.9e-05,2]
[420059214,1775640639312,-1000.0,9.9e-05,2]
[420059215,1775640639322,-9999.99,9.9e-05,2]
[420059216,1775640639332,-2459.93,9.9e-05,2]
[420059217,1775640639341,-5042.98,9.9e-05,2]
[420059218,1775640639350,-999.99,9.9e-05,2]
[420059219,1775640639359,-23419.26,9.9e-05,2]
[420059220,1775640639369,-8464.87,9.9e-05,2]
[420059221,1775640639378,-1571.58,9.9e-05,2]
[420059222,1775640639388,-150.99,9.9e-05,2]
[420059223,1775640639397,-4999.99,9.9e-05,2]
[420059224,1775640639406,-48601.16,9.9e-05,2]
[420059225,1775640639416,-4872.0,9.93e-05,2]
[420059226,1775640639426,-273.13,9.984e-05,2]
[420059227,1775640639436,-500.0,9.984e-05,2]
[420059228,1775640639445,-150.0,0.0001,2]
[420059229,1775640639455,-164.96,0.0001,2]
[420059230,1775640639465,-151.0,0.0001,2]
[420059231,1775640639474,-151.0,0.0001,2]
[420059232,1775640639484,-151.0,0.0001,2]
[420059233,1775640639493,-151.0,0.0001,2]
[420059234,1775640639503,-151.0,0.0001,2]
[420059235,1775640639512,-151.0,0.0001,2]
[420059236,1775640639521,-500.0,0.0001,2]
[420059237,1775640639531,-151.0,0.0001,2]
[420059238,1775640639541,-500.0,0.0001,2]
[420059239,1775640639550,-151.0,0.0001,2]
[420059240,1775640639560,-500.0,0.0001,2]
[420059241,1775640639570,-151.0,0.0001,2]
[420059242,1775640639579,-500.0,0.0001,2]
[420059243,1775640639589,-151.0,0.0001,2]
[420059244,1775640639598,-500.0,0.0001,2]
[420059245,1775640639607,-151.0,0.0001,2]
[420059246,1775640639617,-500.0,0.0001,2]
[420059247,1775640639627,-151.0,0.0001,2]
[420059248,1775640639636,-151.0,0.0001,2]
[420059249,1775640639646,-500.0,0.0001,2]
[420059250,1775640639655,-151.0,0.0001,2]
[420059251,1775640639665,-500.0,0.0001,2]
[420059252,1775640639675,-151.0,0.0001,2]
[420059253,1775640639684,-500.0,0.0001,2]
[420059254,1775640639694,-500.0,0.0001,2]
[420059255,1775640639703,-500.0,0.0001,2]
[420059256,1775640639712,-500.0,0.0001,2]
[420059257,1775640639723,-500.0,0.0001,2]
[420059258,1775640639732,-500.0,0.0001,2]
[420059259,1775640639742,-200.0,0.0001,2]
[420059260,1775640639751,-500.0,0.0001,2]
[420059261,1775640639760,-151.0,0.0001,2]
[420059262,1775640639770,-151.0,0.0001,2]
[420059263,1775640639780,-151.0,0.0001,2]
[420059264,1775640639789,-151.0,0.0001,2]
[420059265,1775640639798,-151.0,0.0001,2]
[420059266,1775640639808,-151.0,0.0001,2]
[420059267,1775640639818,-500.0,0.0001,2]
[420059268,1775640639827,-151.0,0.0001,2]
[420059269,1775640639836,-500.0,0.0001,2]
[420059270,1775640639846,-151.0,0.0001,2]
[420059271,1775640639855,-500.0,0.0001,2]
[420059272,1775640639865,-151.0,0.0001,2]
[420059273,1775640639874,-500.0,0.0001,2]
[420059274,1775640639884,-151.0,0.0001,2]
[420059275,1775640639894,-500.0,0.0001,2]
[420059281,1775640640274,-151.0,0.0001,2]
[420059282,1775640640284,-500.0,0.0001,2]
[420059283,1775640640294,-151.0,0.0001,2]
[420059284,1775640640303,-500.0,0.0001,2]
[420059285,1775640640314,-151.0,0.0001,2]
[420059286,1775640640324,-500.0,0.0001,2]
[420059287,1775640640334,-151.0,0.0001,2]
[420059288,1775640640344,-500.0,0.0001,2]
[420059289,1775640640353,-151.0,0.0001,2]
[420059290,1775640640362,-500.0,0.0001,2]
[420059291,1775640640371,-151.0,0.0001,2]
[420059292,1775640640381,-500.0,0.0001,2]
[420059293,1775640640390,-151.0,0.0001,2]
[420059294,1775640640399,-500.0,0.0001,2]
[420059295,1775640640408,-151.0,0.0001,2]
[420059296,1775640640417,-500.0,0.0001,2]
[420059297,1775640640426,-151.0,0.0001,2]
[420059298,1775640640435,-500.0,0.0001,2]
[420059299,1775640640445,-151.0,0.0001,2]
[420059300,1775640640454,-500.0,0.0001,2]
[420059301,1775640640464,-1199.20597015,0.0001,2]
[420059302,1775640640473,-151.0,0.0001,2]
[420059303,1775640640482,-726.59562278,0.0001,2]
[420059304,1775640640491,-434.94685124,0.0001,2]
[420059305,1775640640500,-434.94685124,0.0001,2]
[420059306,1775640640510,-2000.0,0.00010102,2]
[420059307,1775640640519,-319.64,0.00010113,2]
[420059308,1775640640528,-593.0,0.00010129,2]
[420059309,1775640640538,-1081.0,0.00010149,2]
[420059310,1775640640547,-484.13,0.00010154,2]
[420059311,1775640640557,-487.0,0.0001017,2]
[420059312,1775640640566,-1007.0,0.0001019,2]
[420059313,1775640640576,-466.0,0.00010191,2]
[420059314,1775640640586,-5533.0,0.000102,3]
[420059315,1775640640596,-611.0,0.0001021,2]
[420059316,1775640640605,-1500.0,0.00010237,2]
[420059317,1775640640614,-1857.0,0.0001025,2]
[420059318,1775640640623,-500.0,0.00010258,2]
[420059319,1775640640633,-607.0,0.00010271,2]
[420059320,1775640640643,-1731.0,0.00010291,2]
[420059321,1775640640652,-800.0,0.00010294,2]
[420059322,1775640640662,-800.0,0.00010297,2]
[420059323,1775640640671,-800.0,0.00010297,2]
[420059324,1775640640681,-183.78,0.00010297,2]
[420059325,1775640640691,-800.0,0.000103,2]
[420059326,1775640640700,-1105.0,0.00010312,2]
[420059327,1775640640709,-151.0,0.0001033,2]
[420059328,1775640640719,-786.0,0.00010332,2]
[420059329,1775640640728,-1178.0,0.00010353,2]
[420059330,1775640640737,-5533.0,0.000104,5]
[420059331,1775640640746,-166.66,0.00010405,2]
[420059332,1775640640756,-1000.0,0.00010411,2]
[420059333,1775640640766,-1000.0,0.00010421,2]
[420059334,1775640640775,-501.51019132,0.00010421,2]
[420059335,1775640640784,-1000.0,0.00010421,2]
[420059336,1775640640794,-170.57896389,0.00010421,2]
[420059337,1775640640803,-1000.0,0.00010421,2]
[420059338,1775640640813,-500.43563652,0.00010421,2]
[420059339,1775640640822,-484.13,0.00010428,2]
[420059340,1775640640831,-500.0,0.00010532,2]
[420059341,1775640640841,-200.0,0.00010548,2]
[420059342,1775640640850,-1243.57659104,0.00010548,2]
[420059343,1775640640859,-150.0,0.0001067,2]
[420059344,1775640640870,-484.13,0.00010702,2]
[420059345,1775640640879,-166.66,0.00010748,2]
[420059346,1775640640888,-250.0,0.00010758,2]
[420059347,1775640640899,-500.0,0.00010806,2]
[420059348,1775640640908,-5000.0,0.00010856,2]
[420059349,1775640640917,-193.0,0.00010856,2]
[420059350,1775640640927,-5000.0,0.00010856,2]
[420059351,1775640640936,-1680.0,0.00010856,2]
[420059352,1775640640946,-255.0,0.00010856,2]
[420059353,1775640640956,-250.0,0.00010866,2]
[420059354,1775640640965,-250.0,0.00010868,2]
[420059355,1775640640975,-5000.0,0.00010868,2]
[420059356,1775640640984,-5466.42449106,0.000109,2]
[420059357,1775640640993,-5466.42449105,0.000109,2]
[420059358,1775640641002,-1500.0,0.00010958,2]
[420059359,1775640641012,-501.50073946,0.00010959,2]
[420059360,1775640641021,-1000.0,0.00010968,2]
[420059361,1775640641030,-1500.0,0.00010968,2]
[420059362,1775640641039,-484.13984954,0.00010976,2]
[420059363,1775640641048,-151.502,0.00010999,2]
[420059364,1775640641058,-500.0,0.0001108,2]
[420059365,1775640641067,-166.66,0.00011092,2]
[420059366,1775640641077,-200.0,0.00011096,2]
[420059367,1775640641087,-1289.58892491,0.00011096,2]
[420059368,1775640641096,-41111.43301567,0.00011099,2]
[420059369,1775640641105,-41111.4330156,0.00011099,2]
[420059370,1775640641115,-18832.3985687,0.00011099,2]
[420059371,1775640641125,-18832.3985687,0.00011099,2]
[420059372,1775640641134,-18832.3985687,0.00011139,2]
[420059373,1775640641143,-41111.4330156,0.00011139,2]
[420059374,1775640641153,-170.8892,0.000113,2]
[420059375,1775640641162,-500.0,0.00011354,2]
[420059376,1775640641172,-2000.0,0.00011364,2]
[420059377,1775640641181,-238.84,0.00011366,2]
[420059378,1775640641191,-183.84,0.00011367,2]
[420059379,1775640641200,-163.33,0.00011426,2]
[420059380,1775640641210,-166.66,0.00011435,2]
[420059381,1775640641219,-2000.0,0.00011506,2]
[420059382,1775640641227,-6606.39,0.00011507,2]
[420059383,1775640641237,-894.44940628,0.00011516,2]
[420059384,1775640641246,-5466.42449105,0.00011529,2]
[420059385,1775640641255,-200.0,0.00011644,2]
[420059386,1775640641265,-1337.30371513,0.00011644,2]
[420059387,1775640641275,-166.66,0.00011778,2]
[420059388,1775640641284,-186.0,0.00011796,3]
[420059389,1775640641293,-18832.3985687,0.00011819,2]
[420059390,1775640641302,-41111.4330156,0.00011819,2]
[420059391,1775640641313,-2351.0,0.00011942,2]
[420059392,1775640641323,-433.0,0.00011942,2]
[420059393,1775640641332,-2500.0,0.00012054,2]
[420059394,1775640641342,-45025.43,0.00012055,2]
[420059395,1775640641351,-166.66,0.00012122,2]
[420059396,1775640641361,-200.0,0.00012192,2]
[420059397,1775640641370,-713.16856585,0.00012192,2]
[420059398,1775640641380,-5466.42449105,0.00012403,2]
[420059399,1775640641389,-18832.3985687,0.00012498,2]
[420059400,1775640641398,-41111.4330156,0.00012498,2]
[420059401,1775640641408,-213.48832685,0.00012563,2]
[420059402,1775640641417,-175.04991806,0.00012564,2]
[420059403,1775640641426,-219.48963895,0.00012564,2]
[420059404,1775640641436,-248.44826352,0.00012564,2]
[420059405,1775640641445,-450.79968958,0.00012564,2]
[420059406,1775640641455,-163.33,0.00012568,2]
[420059407,1775640641464,-160.0,0.00012572,2]
[420059408,1775640641474,-346.389229,0.00012572,2]
[420059409,1775640641483,-532.778459,0.00012572,2]
[420059410,1775640641492,-227.01466449,0.00012588,2]
[420059411,1775640641502,-198.19814992,0.00012588,2]
[420059412,1775640641511,-157.41353851,0.00012602,2]
[420059413,1775640641520,-3000.0,0.00012602,2]
[420059414,1775640641530,-2000.0,0.00012627,2]
[420059415,1775640641539,-179.00039689,0.0001263,2]
[420059416,1775640641548,-194.6874,0.000127,2]
[420059417,1775640641558,-307.26991963,0.00012736,2]
[420059418,1775640641568,-152.45672918,0.00012739,2]
[420059419,1775640641577,-200.0,0.0001274,2]
[420059420,1775640641586,-434.22424901,0.00012828,2]
[420059421,1775640641595,-792.03666556,0.00012828,2]
[420059422,1775640641605,-726.59562277,0.0001284,2]
[420059423,1775640641614,-2871.27931664,0.0001284,2]
[420059424,1775640641623,-5327.3148707,0.0001284,2]
[420059425,1775640641633,-173.3,0.00012845,2]
[420059426,1775640641642,-346.61,0.00012848,2]
[420059427,1775640641652,-173.3,0.00012852,2]
[420059428,1775640641662,-231.3,0.00012854,2]
[420059429,1775640641671,-382.4131397,0.00012896,2]
[420059430,1775640641681,-236.49874218,0.00012896,2]
[420059431,1775640641690,-160.0,0.00012914,2]
[420059432,1775640641699,-752.176221,0.00012914,2]
[420059433,1775640641709,-1344.352442,0.00012914,2]
[420059434,1775640641719,-160.0,0.00012914,2]
[420059435,1775640641728,-786.062439,0.00012914,2]
[420059436,1775640641737,-1412.124878,0.00012914,2]
[420059437,1775640641747,-160.0,0.00012914,2]
[420059438,1775640641757,-1196.953067,0.00012914,2]
[420059439,1775640641767,-2233.906134,0.00012914,2]
[420059440,1775640641776,-506.0,0.000131,2]
[420059441,1775640641786,-3292.0,0.00013136,2]
[420059442,1775640641796,-736.0,0.00013136,2]
[420059443,1775640641805,-1513.3582935,0.0001315,2]
[420059444,1775640641814,-18832.3985687,0.00013178,2]
[420059445,1775640641824,-41111.4330156,0.00013178,2]
[420059446,1775640641834,-472.348949,0.000132,2]
[420059447,1775640641844,-5466.42449105,0.00013277,2]
[420059448,1775640641854,-201.60184993,0.00013288,2]
[420059449,1775640641864,-150.0,0.00013338,2]
[420059450,1775640641874,-250.0,0.00013379,2]
[420059451,1775640641884,-1025.694847,0.0001356,2]
[420059452,1775640641894,-1071.903326,0.0001356,2]
[420059453,1775640641903,-1632.208727,0.0001356,2]
[420059454,1775640641913,-238.84,0.00013563,2]
[420059455,1775640641922,-150.0,0.00013594,2]
[420059456,1775640641932,-183.84,0.00013603,2]
[420059457,1775640641942,-500.0,0.00013698,2]
[420059458,1775640641952,-483.48,0.00013698,2]
[420059459,1775640641963,-500.0,0.00013698,2]
[420059460,1775640641972,-500.0,0.00013698,2]
[420059461,1775640641982,-500.0,0.00013698,2]
[420059462,1775640641992,-500.0,0.00013698,2]
[420059463,1775640642002,-500.0,0.00013698,2]
[420059464,1775640642012,-500.0,0.00013698,2]
[420059465,1775640642022,-179.05662005,0.00013698,2]
[420059466,1775640642031,-500.0,0.00013698,2]
[420059467,1775640642041,-153.3776321,0.00013698,2]
[420059468,1775640642051,-500.0,0.00013698,2]
[420059469,1775640642060,-755.31,0.00013698,2]
[420059470,1775640642070,-755.31,0.00013698,2]
[420059471,1775640642080,-755.31,0.00013698,2]
[420059472,1775640642090,-755.31,0.00013698,2]
[420059473,1775640642100,-755.31,0.00013698,2]
[420059474,1775640642110,-755.31,0.00013698,2]
[420059475,1775640642120,-755.31,0.00013698,2]
[420059476,1775640642131,-755.31,0.00013698,2]
[420059477,1775640642140,-755.31,0.00013698,2]
[420059478,1775640642151,-755.31,0.00013698,2]
[420059479,1775640642161,-755.31,0.00013698,2]
[420059480,1775640642171,-755.31,0.00013698,2]
[420059481,1775640642181,-755.31,0.00013698,2]
[420059482,1775640642190,-755.31,0.00013698,2]
[420059483,1775640642200,-755.31,0.00013698,2]
[420059484,1775640642210,-755.31,0.00013698,2]
[420059485,1775640642220,-755.31,0.00013698,2]
[420059486,1775640642230,-500.0,0.00013698,2]
[420059487,1775640642240,-500.0,0.00013698,2]
[420059488,1775640642250,-500.0,0.00013698,2]
[420059489,1775640642260,-500.0,0.00013698,2]
[420059490,1775640642270,-226.76167304,0.00013698,2]
[420059491,1775640642280,-500.0,0.00013698,2]
[420059492,1775640642290,-500.0,0.00013698,2]
[420059493,1775640642299,-633.831471,0.00013698,2]
[420059494,1775640642310,-500.0,0.00013698,2]
[420059495,1775640642319,-500.0,0.00013698,2]
[420059496,1775640642329,-500.0,0.00013698,2]
[420059497,1775640642339,-500.0,0.00013698,2]
[420059498,1775640642349,-454.40497159,0.00013698,2]
[420059499,1775640642358,-500.0,0.00013698,2]
[420059500,1775640642368,-500.0,0.00013698,2]
[420059501,1775640642378,-500.0,0.00013698,2]
[420059502,1775640642388,-500.0,0.00013698,2]
[420059503,1775640642398,-500.0,0.00013698,2]
[420059504,1775640642408,-500.0,0.00013698,2]
[420059505,1775640642417,-500.0,0.00013698,2]
[420059506,1775640642427,-500.0,0.00013698,2]
[420059507,1775640642438,-500.0,0.00013698,2]
[420059508,1775640642448,-500.0,0.00013698,2]
[420059509,1775640642459,-500.0,0.00013698,2]
[420059510,1775640642468,-500.0,0.00013698,2]
[420059511,1775640642478,-500.0,0.00013698,2]
[420059512,1775640642488,-392.00957995,0.00013698,2]
[420059513,1775640642498,-568.74,0.00013698,2]
[420059514,1775640642508,-568.74,0.00013698,2]
[420059515,1775640642518,-568.74,0.00013698,2]
[420059516,1775640642528,-568.74,0.00013698,2]
[420059517,1775640642537,-568.74,0.00013698,2]
[420059518,1775640642547,-568.74,0.00013698,2]
[420059519,1775640642557,-568.74,0.00013698,2]
[420059520,1775640642567,-568.74,0.00013698,2]
[420059521,1775640642576,-568.74,0.00013698,2]
[420059522,1775640642586,-568.74,0.00013698,2]
[420059523,1775640642596,-568.74,0.00013698,2]
[420059524,1775640642606,-568.74,0.00013698,2]
[420059525,1775640642615,-568.74,0.00013698,2]
[420059526,1775640642625,-568.74,0.00013698,2]
[420059527,1775640642635,-568.74,0.00013698,2]
[420059528,1775640642644,-568.74,0.00013698,2]
[420059529,1775640642654,-500.0,0.00013698,2]
[420059530,1775640642663,-568.74,0.00013698,2]
[420059531,1775640642673,-500.0,0.00013698,2]
[420059532,1775640642683,-500.0,0.00013698,2]
[420059533,1775640642693,-500.0,0.00013698,2]
[420059534,1775640642702,-500.0,0.00013698,2]
[420059535,1775640642712,-500.0,0.00013698,2]
[420059536,1775640642722,-500.0,0.00013698,2]
[420059537,1775640642731,-500.0,0.00013698,2]
[420059538,1775640642741,-500.0,0.00013698,2]
[420059539,1775640642750,-500.0,0.00013698,2]
[420059540,1775640642760,-500.0,0.00013698,2]
[420059541,1775640642769,-500.0,0.00013698,2]
[420059542,1775640642779,-644.24464926,0.00013698,2]
[420059543,1775640642789,-500.0,0.00013698,2]
[420059544,1775640642799,-500.0,0.00013698,2]
[420059545,1775640642809,-500.0,0.00013698,2]
[420059546,1775640642819,-500.0,0.00013698,2]
[420059547,1775640642830,-500.0,0.00013698,2]
[420059548,1775640642840,-500.0,0.00013698,2]
[420059549,1775640642849,-500.0,0.00013698,2]
[420059550,1775640642859,-500.0,0.00013698,2]
[420059551,1775640642869,-637.2484516,0.00013698,2]
[420059553,1775640642879,-500.0,0.00013698,2]
[420059555,1775640642889,-500.0,0.00013698,2]
[420059557,1775640642899,-500.0,0.00013698,2]
[420059559,1775640642908,-500.0,0.00013698,2]
[420059560,1775640642918,-500.0,0.00013698,2]
[420059561,1775640642928,-500.0,0.00013698,2]
[420059562,1775640642938,-500.0,0.00013698,2]
[420059563,1775640642948,-500.0,0.00013698,2]
[420059564,1775640642958,-500.0,0.00013698,2]
[420059565,1775640642968,-500.0,0.00013698,2]
[420059566,1775640642977,-500.0,0.00013698,2]
[420059567,1775640642987,-500.0,0.00013698,2]
[420059568,1775640642997,-500.0,0.00013698,2]
[420059569,1775640643007,-500.0,0.00013698,2]
[420059570,1775640643017,-522.8150328,0.00013698,2]
[420059571,1775640643027,-500.0,0.00013698,2]
[420059572,1775640643037,-500.0,0.00013698,2]
[420059573,1775640643047,-500.0,0.00013698,2]